[Event "*** Titled Tuesday 3|2 Blitz"]
[Site "Chess.com"]
[Date "2015.12.01"]
[Round "8"]
[White "LADIESGET2KNOWME"]
[Black "chessloveyou"]
[Result "1-0"]
[WhiteElo "2242"]
[BlackElo "2138"]
[TimeControl "180+2"]
[EndTime "12:38:29 PST"]
[Termination "LADIESGET2KNOWME won by resignation"]

1. d4 {[%clk 0:03:01.9]} 1... f5 {[%clk 0:03:00.1]} 2. Nc3 {[%clk 0:03:02.4]}
2... d5 {[%clk 0:02:59.3]} 3. Bf4 {[%clk 0:02:59.3]} 3... Nf6 {[%clk 0:02:58.5]}
4. e3 {[%clk 0:03:00.4]} 4... c6 {[%clk 0:02:58.9]} 5. Nf3 {[%clk 0:03:01.1]}
5... e6 {[%clk 0:02:51.2]} 6. Ne5 {[%clk 0:03:02]} 6... Bb4 {[%clk 0:02:49.9]}
7. Bd3 {[%clk 0:03:01.9]} 7... Ne4 {[%clk 0:02:46]} 8. Bxe4 {[%clk 0:02:59.2]}
8... fxe4 {[%clk 0:02:38.8]} 9. Qh5+ {[%clk 0:03:00.2]} 9... g6 {[%clk
0:02:37.9]} 10. Nxg6 {[%clk 0:02:59.2]} 10... hxg6 {[%clk 0:02:38.2]} 11. Qxh8+
{[%clk 0:02:56.9]} 11... Kd7 {[%clk 0:02:39.3]} 12. Qh7+ {[%clk 0:02:43.9]}
12... Qe7 {[%clk 0:02:26.8]} 13. Qxg6 {[%clk 0:02:40.9]} 13... b6 {[%clk
0:02:27.8]} 14. O-O {[%clk 0:02:32.3]} 14... Ba6 {[%clk 0:02:25.2]} 15. Rfd1
{[%clk 0:02:27.6]} 15... c5 {[%clk 0:02:26]} 16. dxc5 {[%clk 0:02:25.7]} 16...
Bxc3 {[%clk 0:02:26.7]} 17. bxc3 {[%clk 0:02:24.6]} 17... bxc5 {[%clk
0:02:27.4]} 18. Qxe4 {[%clk 0:02:19.3]} 18... Nc6 {[%clk 0:02:26.2]} 19. Qa4
{[%clk 0:02:20]} 19... Be2 {[%clk 0:02:22.9]} 20. Rd2 {[%clk 0:02:20.1]} 20...
Bh5 {[%clk 0:02:22.7]} 21. Rb1 {[%clk 0:02:16.8]} 1-0

[Event "*** Titled Tuesday 3|2 Blitz"]
[Site "Chess.com"]
[Date "2015.12.01"]
[Round "8"]
[White "NguyenDucHoa"]
[Black "E-Shaposhnikov"]
[Result "0-1"]
[WhiteElo "2356"]
[BlackElo "2495"]
[TimeControl "180+2"]
[EndTime "12:39:11 PST"]
[Termination "E-Shaposhnikov won by resignation"]

1. e4 {[%clk 0:03:01.9]} 1... c5 {[%clk 0:01:48.6]} 2. Nf3 {[%clk 0:02:53.8]}
2... e6 {[%clk 0:01:49.3]} 3. d4 {[%clk 0:02:50.1]} 3... cxd4 {[%clk 0:01:48.7]}
4. Nxd4 {[%clk 0:02:52]} 4... a6 {[%clk 0:01:48.9]} 5. c4 {[%clk 0:02:52.9]}
5... Nf6 {[%clk 0:01:49.4]} 6. Nc3 {[%clk 0:02:52.9]} 6... Bb4 {[%clk
0:01:51.1]} 7. Qd3 {[%clk 0:02:53.1]} 7... Qc7 {[%clk 0:01:50.9]} 8. a3 {[%clk
0:02:54.2]} 8... Be7 {[%clk 0:01:40.2]} 9. Be2 {[%clk 0:02:42.3]} 9... O-O
{[%clk 0:01:36.4]} 10. O-O {[%clk 0:02:41.2]} 10... Nc6 {[%clk 0:01:36.8]} 11.
b3 {[%clk 0:02:13.1]} 11... Nxd4 {[%clk 0:01:26.5]} 12. Qxd4 {[%clk 0:02:13.7]}
12... Bd6 {[%clk 0:01:27.6]} 13. f4 {[%clk 0:02:01.3]} 13... Bc5 {[%clk
0:01:22.1]} 0-1

[Event "*** Titled Tuesday 3|2 Blitz"]
[Site "Chess.com"]
[Date "2015.12.01"]
[Round "8"]
[White "lukas_111111"]
[Black "rikyshi"]
[Result "0-1"]
[WhiteElo "2213"]
[BlackElo "2144"]
[TimeControl "180+2"]
[EndTime "12:40:48 PST"]
[Termination "rikyshi won by resignation"]

1. e4 {[%clk 0:03:01.9]} 1... e6 {[%clk 0:03:00.8]} 2. d4 {[%clk 0:03:00.2]}
2... d5 {[%clk 0:03:01.6]} 3. Nc3 {[%clk 0:03:00.8]} 3... Nc6 {[%clk 0:03:02.1]}
4. Nf3 {[%clk 0:03:00.5]} 4... Nf6 {[%clk 0:03:02.5]} 5. Bd3 {[%clk 0:02:58.1]}
5... Bb4 {[%clk 0:03:02.5]} 6. Bg5 {[%clk 0:02:52.1]} 6... h6 {[%clk 0:03:02.4]}
7. Bxf6 {[%clk 0:02:51.6]} 7... Qxf6 {[%clk 0:02:59.6]} 8. O-O {[%clk
0:02:51.5]} 8... Bxc3 {[%clk 0:02:57.3]} 9. bxc3 {[%clk 0:02:36.8]} 9... dxe4
{[%clk 0:02:57.1]} 10. Bxe4 {[%clk 0:02:37.4]} 10... O-O {[%clk 0:02:56.3]} 11.
Rb1 {[%clk 0:02:31.3]} 11... Rd8 {[%clk 0:02:49.5]} 12. Qe2 {[%clk 0:02:30]}
12... a6 {[%clk 0:02:43.5]} 13. Bxc6 {[%clk 0:02:25.7]} 13... bxc6 {[%clk
0:02:44.6]} 14. Ne5 {[%clk 0:02:27.2]} 14... Rd6 {[%clk 0:02:43.5]} 15. Qe4
{[%clk 0:02:19.8]} 15... Qf5 {[%clk 0:02:41.3]} 16. Qxf5 {[%clk 0:02:12.6]}
16... exf5 {[%clk 0:02:43.2]} 17. a3 {[%clk 0:01:48.3]} 17... a5 {[%clk
0:02:32]} 18. Rfe1 {[%clk 0:01:43]} 18... Kf8 {[%clk 0:02:30.7]} 19. Nc4 {[%clk
0:01:42.7]} 19... Re6 {[%clk 0:02:26.5]} 20. Rxe6 {[%clk 0:01:42.4]} 20... Bxe6
{[%clk 0:02:17.6]} 21. Ne5 {[%clk 0:01:43.6]} 21... Bd5 {[%clk 0:02:18.5]} 22.
Rb7 {[%clk 0:01:33.6]} 22... f6 {[%clk 0:02:15.5]} 23. Nd7+ {[%clk 0:01:31.1]}
23... Ke7 {[%clk 0:02:15.7]} 24. Nb6 {[%clk 0:01:25.3]} 24... Re8 {[%clk
0:02:05.2]} 25. Rxc7+ {[%clk 0:01:25.2]} 25... Kd6 {[%clk 0:02:06.2]} 26. Rd7+
{[%clk 0:01:24.5]} 26... Ke6 {[%clk 0:02:07.2]} 27. Rxg7 {[%clk 0:01:24.3]}
27... Rb8 {[%clk 0:02:06.3]} 0-1

[Event "*** Titled Tuesday 3|2 Blitz"]
[Site "Chess.com"]
[Date "2015.12.01"]
[Round "8"]
[White "FabianEnglert"]
[Black "gumersindo"]
[Result "1-0"]
[WhiteElo "2302"]
[BlackElo "2196"]
[TimeControl "180+2"]
[EndTime "12:41:41 PST"]
[Termination "FabianEnglert won by checkmate"]

1. Nf3 {[%clk 0:03:01.9]} 1... d5 {[%clk 0:02:58.5]} 2. g3 {[%clk 0:03:03.1]}
2... Nf6 {[%clk 0:02:58.6]} 3. Bg2 {[%clk 0:03:04.6]} 3... e6 {[%clk 0:02:59.2]}
4. O-O {[%clk 0:03:06.1]} 4... Be7 {[%clk 0:03:00.7]} 5. c4 {[%clk 0:03:05.5]}
5... O-O {[%clk 0:03:01.5]} 6. b3 {[%clk 0:03:06.8]} 6... c5 {[%clk 0:03:01.4]}
7. e3 {[%clk 0:03:07.3]} 7... Nc6 {[%clk 0:03:02.8]} 8. Bb2 {[%clk 0:03:07.9]}
8... b6 {[%clk 0:03:03.4]} 9. Nc3 {[%clk 0:03:05]} 9... Bb7 {[%clk 0:03:04.1]}
10. cxd5 {[%clk 0:03:05.5]} 10... exd5 {[%clk 0:03:03]} 11. d4 {[%clk
0:03:06.2]} 11... c4 {[%clk 0:02:50.7]} 12. bxc4 {[%clk 0:02:55.4]} 12... dxc4
{[%clk 0:02:51.5]} 13. e4 {[%clk 0:02:53.4]} 13... a6 {[%clk 0:02:47.3]} 14. Qe2
{[%clk 0:02:40.4]} 14... b5 {[%clk 0:02:48]} 15. Rfd1 {[%clk 0:02:41.2]} 15...
Nb4 {[%clk 0:02:47.7]} 16. Ne1 {[%clk 0:02:24.6]} 16... Re8 {[%clk 0:02:45.8]}
17. a3 {[%clk 0:02:25.2]} 17... Nc6 {[%clk 0:02:43.4]} 18. e5 {[%clk 0:02:21]}
18... Nd7 {[%clk 0:02:41.9]} 19. e6 {[%clk 0:02:15.4]} 19... Nf6 {[%clk
0:02:42.9]} 20. d5 {[%clk 0:02:06.9]} 20... Na5 {[%clk 0:02:41.3]} 21. exf7+
{[%clk 0:01:47.9]} 21... Kxf7 {[%clk 0:02:41.1]} 22. Qe6+ {[%clk 0:01:49.5]}
22... Kf8 {[%clk 0:02:41.7]} 23. d6 {[%clk 0:01:46.1]} 23... Bxd6 {[%clk
0:02:42.6]} 24. Qxd6+ {[%clk 0:01:41.8]} 24... Qxd6 {[%clk 0:02:40.8]} 25. Rxd6
{[%clk 0:01:43.7]} 25... Bxg2 {[%clk 0:02:41.4]} 26. Nxg2 {[%clk 0:01:36]} 26...
Nb3 {[%clk 0:02:42.8]} 27. Rad1 {[%clk 0:01:34.8]} 27... Reb8 {[%clk 0:02:38.4]}
28. Nd5 {[%clk 0:01:19]} 28... Ne4 {[%clk 0:02:30.9]} 29. Rd7 {[%clk 0:01:19]}
29... Nbc5 {[%clk 0:02:27.2]} 30. Bxg7+ {[%clk 0:00:40.2]} 30... Ke8 {[%clk
0:02:20.8]} 31. Re7+ {[%clk 0:00:38]} 31... Kd8 {[%clk 0:02:22]} 32. Rxe4 {[%clk
0:00:25.4]} 32... Nxe4 {[%clk 0:02:22.6]} 33. Nf6+ {[%clk 0:00:27]} 33... Ke7
{[%clk 0:02:16.7]} 34. Nxe4 {[%clk 0:00:28.4]} 34... a5 {[%clk 0:02:17.3]} 35.
Nf4 {[%clk 0:00:28.8]} 35... b4 {[%clk 0:02:17.7]} 36. Bf6+ {[%clk 0:00:30.2]}
36... Kf7 {[%clk 0:02:17.4]} 37. Rd7+ {[%clk 0:00:30.7]} 37... Ke8 {[%clk
0:02:17]} 38. Re7+ {[%clk 0:00:29.7]} 38... Kf8 {[%clk 0:02:17.1]} 39. Ne6+
{[%clk 0:00:30.9]} 39... Kg8 {[%clk 0:02:18.1]} 40. Rg7+ {[%clk 0:00:32.1]}
40... Kh8 {[%clk 0:02:19.4]} 41. Rg6# {[%clk 0:00:33.6]} 1-0

[Event "*** Titled Tuesday 3|2 Blitz"]
[Site "Chess.com"]
[Date "2015.12.01"]
[Round "8"]
[White "UltimateCrusher2"]
[Black "AndrewMcStone"]
[Result "1-0"]
[WhiteElo "2038"]
[BlackElo "1989"]
[TimeControl "180+2"]
[EndTime "12:42:20 PST"]
[Termination "UltimateCrusher2 won by resignation"]

1. g3 {[%clk 0:02:55.3]} 1... f5 {[%clk 0:02:57.1]} 2. Bg2 {[%clk 0:02:55.8]}
2... Nf6 {[%clk 0:02:58.5]} 3. Nc3 {[%clk 0:02:46.7]} 3... e5 {[%clk 0:02:41.1]}
4. d3 {[%clk 0:02:42.2]} 4... Bb4 {[%clk 0:02:21.5]} 5. a3 {[%clk 0:02:40.5]}
5... Be7 {[%clk 0:02:11.8]} 6. Nf3 {[%clk 0:02:31.3]} 6... d6 {[%clk 0:02:09.5]}
7. O-O {[%clk 0:02:30.2]} 7... O-O {[%clk 0:02:09.7]} 8. b4 {[%clk 0:02:27.7]}
8... c6 {[%clk 0:02:04.4]} 9. Rb1 {[%clk 0:02:28.3]} 9... Kh8 {[%clk 0:01:34.7]}
10. e4 {[%clk 0:02:27.6]} 10... fxe4 {[%clk 0:01:26.7]} 11. dxe4 {[%clk
0:02:23.3]} 11... Bg4 {[%clk 0:01:25.5]} 12. h3 {[%clk 0:02:21.7]} 12... Be6
{[%clk 0:01:20.1]} 13. Nh4 {[%clk 0:02:19.1]} 13... Qd7 {[%clk 0:01:17.8]} 14.
Kh2 {[%clk 0:02:16.1]} 14... Na6 {[%clk 0:01:13]} 15. f4 {[%clk 0:02:16.4]}
15... exf4 {[%clk 0:01:07.5]} 16. Bxf4 {[%clk 0:02:18.3]} 16... Bc4 {[%clk
0:00:45.2]} 17. Rf2 {[%clk 0:02:14.7]} 17... Rad8 {[%clk 0:00:37.1]} 18. Nf5
{[%clk 0:02:11]} 18... Be6 {[%clk 0:00:37.3]} 19. g4 {[%clk 0:02:06.8]} 19...
Bxf5 {[%clk 0:00:20.9]} 20. exf5 {[%clk 0:02:08.7]} 20... d5 {[%clk 0:00:20.2]}
21. b5 {[%clk 0:02:01.8]} 21... Nc5 {[%clk 0:00:19.9]} 22. bxc6 {[%clk
0:02:01.3]} 22... bxc6 {[%clk 0:00:21.8]} 23. Qd4 {[%clk 0:02:02.6]} 23... Nce4
{[%clk 0:00:14.3]} 24. Nxe4 {[%clk 0:02:02.8]} 24... dxe4 {[%clk 0:00:15.4]} 25.
Qxd7 {[%clk 0:02:01.1]} 25... Rxd7 {[%clk 0:00:17.3]} 26. Re1 {[%clk 0:01:56.1]}
26... Bc5 {[%clk 0:00:17]} 27. Rfe2 {[%clk 0:01:53.4]} 27... Nd5 {[%clk
0:00:17.8]} 28. Bg3 {[%clk 0:01:38]} 28... e3 {[%clk 0:00:17.8]} 29. Bxd5 {[%clk
0:01:31.7]} 29... Rxd5 {[%clk 0:00:18.3]} 30. Bf4 {[%clk 0:01:32.8]} 30... Re8
{[%clk 0:00:13.5]} 31. Kg2 {[%clk 0:01:33.1]} 31... Bxa3 {[%clk 0:00:12.7]} 32.
Rxe3 {[%clk 0:01:32.7]} 32... Rxe3 {[%clk 0:00:11.8]} 33. Rxe3 {[%clk
0:01:33.1]} 33... Rd8 {[%clk 0:00:12.8]} 34. Rxa3 {[%clk 0:01:33]} 1-0

[Event "*** Titled Tuesday 3|2 Blitz"]
[Site "Chess.com"]
[Date "2015.12.01"]
[Round "8"]
[White "KnightSeeSix"]
[Black "SlovenskiZmaj"]
[Result "0-1"]
[WhiteElo "2160"]
[BlackElo "2312"]
[TimeControl "180+2"]
[EndTime "12:42:51 PST"]
[Termination "SlovenskiZmaj won by resignation"]

1. e4 {[%clk 0:03:01.9]} 1... c6 {[%clk 0:03:00.3]} 2. d4 {[%clk 0:03:00]} 2...
d5 {[%clk 0:03:02.2]} 3. Nc3 {[%clk 0:03:00]} 3... dxe4 {[%clk 0:03:03.2]} 4.
Nxe4 {[%clk 0:03:00.3]} 4... Bf5 {[%clk 0:03:04.8]} 5. Ng3 {[%clk 0:03:01]} 5...
Bg6 {[%clk 0:03:06.5]} 6. Nf3 {[%clk 0:03:02.3]} 6... Nd7 {[%clk 0:03:06.9]} 7.
Bd3 {[%clk 0:03:02.2]} 7... Ngf6 {[%clk 0:03:07.1]} 8. O-O {[%clk 0:03:02.8]}
8... e6 {[%clk 0:03:07.8]} 9. Re1 {[%clk 0:03:03.5]} 9... Bd6 {[%clk 0:03:00.5]}
10. Nh4 {[%clk 0:03:03.3]} 10... O-O {[%clk 0:02:48.2]} 11. Nxg6 {[%clk
0:03:02.8]} 11... hxg6 {[%clk 0:02:50.1]} 12. Qf3 {[%clk 0:03:00.1]} 12... Qc7
{[%clk 0:02:43.2]} 13. c3 {[%clk 0:02:49.4]} 13... c5 {[%clk 0:02:41.2]} 14.
dxc5 {[%clk 0:02:48]} 14... Nxc5 {[%clk 0:02:37.6]} 15. Bc2 {[%clk 0:02:44.7]}
15... a6 {[%clk 0:02:33]} 16. Bg5 {[%clk 0:02:44.4]} 16... Ncd7 {[%clk 0:02:31]}
17. Rad1 {[%clk 0:02:44.6]} 17... b5 {[%clk 0:02:29]} 18. Qd3 {[%clk 0:02:09.4]}
18... Nd5 {[%clk 0:02:08.3]} 19. Bb3 {[%clk 0:01:41.6]} 19... Nc5 {[%clk
0:02:08.4]} 20. Qf3 {[%clk 0:01:38.9]} 20... Nxb3 {[%clk 0:02:07.6]} 21. axb3
{[%clk 0:01:40.8]} 21... Rfe8 {[%clk 0:01:46.9]} 22. b4 {[%clk 0:01:19.2]} 22...
a5 {[%clk 0:01:45.5]} 23. bxa5 {[%clk 0:01:17.9]} 23... Qxa5 {[%clk 0:01:38.2]}
24. Ne4 {[%clk 0:01:14.9]} 24... Be7 {[%clk 0:01:25.2]} 25. Bxe7 {[%clk
0:01:12.4]} 25... Rxe7 {[%clk 0:01:27.1]} 26. Nd6 {[%clk 0:00:40.3]} 26... Qb6
{[%clk 0:01:10]} 27. Ne4 {[%clk 0:00:20.4]} 27... Ra2 {[%clk 0:01:09.8]} 28. Qe2
{[%clk 0:00:20.4]} 28... b4 {[%clk 0:00:44.9]} 29. Rxd5 {[%clk 0:00:16.4]} 29...
exd5 {[%clk 0:00:42.3]} 30. Nf6+ {[%clk 0:00:12.4]} 30... Qxf6 {[%clk
0:00:42.5]} 0-1

[Event "*** Titled Tuesday 3|2 Blitz"]
[Site "Chess.com"]
[Date "2015.12.01"]
[Round "8"]
[White "Colombiano07"]
[Black "BakaPG"]
[Result "0-1"]
[WhiteElo "2111"]
[BlackElo "2463"]
[TimeControl "180+2"]
[EndTime "12:42:59 PST"]
[Termination "BakaPG won by resignation"]

1. d4 {[%clk 0:03:01.9]} 1... d5 {[%clk 0:02:58.4]} 2. Nf3 {[%clk 0:03:02.7]}
2... Nf6 {[%clk 0:02:57.8]} 3. g3 {[%clk 0:03:04.6]} 3... Bf5 {[%clk 0:02:54.1]}
4. Bg2 {[%clk 0:03:06.5]} 4... e6 {[%clk 0:02:53]} 5. O-O {[%clk 0:03:08.4]}
5... h6 {[%clk 0:02:52.9]} 6. c4 {[%clk 0:03:10.3]} 6... c6 {[%clk 0:02:53.6]}
7. Nc3 {[%clk 0:03:11.8]} 7... Nbd7 {[%clk 0:02:52.6]} 8. Qb3 {[%clk 0:03:12.8]}
8... Qb6 {[%clk 0:02:49.4]} 9. c5 {[%clk 0:03:13.8]} 9... Qc7 {[%clk 0:02:49.8]}
10. Bf4 {[%clk 0:03:14]} 10... Qc8 {[%clk 0:02:50.6]} 11. Qd1 {[%clk 0:03:09.9]}
11... Be7 {[%clk 0:02:46.4]} 12. b4 {[%clk 0:03:10.3]} 12... O-O {[%clk
0:02:43.6]} 13. a4 {[%clk 0:03:11.1]} 13... Ne4 {[%clk 0:02:42.7]} 14. Nxe4
{[%clk 0:03:09]} 14... Bxe4 {[%clk 0:02:42.3]} 15. Nd2 {[%clk 0:03:07.7]} 15...
Bh7 {[%clk 0:02:40.3]} 16. Nb3 {[%clk 0:03:02.7]} 16... Re8 {[%clk 0:02:36.9]}
17. Na5 {[%clk 0:03:03.1]} 17... b6 {[%clk 0:02:22.8]} 18. Nb3 {[%clk
0:03:02.6]} 18... Bf6 {[%clk 0:02:22.2]} 19. Rc1 {[%clk 0:03:00.5]} 19... bxc5
{[%clk 0:02:18.1]} 20. Nxc5 {[%clk 0:03:00.5]} 20... Nb6 {[%clk 0:02:13.8]} 21.
e4 {[%clk 0:02:51.8]} 21... dxe4 {[%clk 0:02:07.8]} 22. Nxe4 {[%clk 0:02:51.8]}
22... Be7 {[%clk 0:02:02.1]} 23. Nd6 {[%clk 0:02:48.9]} 23... Bxd6 {[%clk
0:01:56.6]} 24. Bxd6 {[%clk 0:02:50.8]} 24... Qd7 {[%clk 0:01:52.8]} 25. Bf4
{[%clk 0:02:29.7]} 25... Nd5 {[%clk 0:01:51]} 26. Bd2 {[%clk 0:02:28.6]} 26...
Rab8 {[%clk 0:01:45.9]} 27. Qe1 {[%clk 0:01:53.3]} 27... Bd3 {[%clk 0:01:40.4]}
28. Be4 {[%clk 0:01:43.9]} 28... Bxf1 {[%clk 0:01:38.3]} 29. Kxf1 {[%clk
0:01:45.8]} 29... Rbc8 {[%clk 0:01:02.6]} 30. Bb1 {[%clk 0:01:42]} 30... Nb6
{[%clk 0:01:00.8]} 31. Qe4 {[%clk 0:01:42]} 31... f5 {[%clk 0:01:00.1]} 32. Qc2
{[%clk 0:01:39.2]} 32... Qxd4 {[%clk 0:00:56.9]} 33. Bc3 {[%clk 0:01:37.8]}
33... Qc4+ {[%clk 0:00:49.1]} 34. Kg1 {[%clk 0:01:37]} 34... Nd5 {[%clk
0:00:50.3]} 35. Ba2 {[%clk 0:01:27.9]} 35... Qxc3 {[%clk 0:00:46.9]} 36. Qxc3
{[%clk 0:01:29.8]} 36... Nxc3 {[%clk 0:00:47.6]} 37. Rxc3 {[%clk 0:01:30.8]}
37... Kf7 {[%clk 0:00:48.4]} 38. Rc5 {[%clk 0:01:31.5]} 38... Kf6 {[%clk
0:00:48.9]} 39. f4 {[%clk 0:01:31]} 39... Red8 {[%clk 0:00:48.3]} 40. Re5 {[%clk
0:01:28.5]} 40... Rd1+ {[%clk 0:00:48.3]} 41. Kf2 {[%clk 0:01:28.4]} 41... Rd2+
{[%clk 0:00:48.9]} 42. Re2 {[%clk 0:01:30]} 42... Rxe2+ {[%clk 0:00:49.7]} 43.
Kxe2 {[%clk 0:01:31.9]} 43... a5 {[%clk 0:00:44.1]} 44. b5 {[%clk 0:01:31.7]}
44... cxb5 {[%clk 0:00:43.8]} 45. axb5 {[%clk 0:01:33.6]} 45... Rc2+ {[%clk
0:00:36.7]} 0-1

[Event "*** Titled Tuesday 3|2 Blitz"]
[Site "Chess.com"]
[Date "2015.12.01"]
[Round "8"]
[White "ilmago"]
[Black "stepanosinovsky"]
[Result "1-0"]
[WhiteElo "1931"]
[BlackElo "2183"]
[TimeControl "180+2"]
[EndTime "12:43:22 PST"]
[Termination "ilmago won by checkmate"]

1. e4 {[%clk 0:03:01.9]} 1... b6 {[%clk 0:03:01.9]} 2. d4 {[%clk 0:03:01.9]}
2... Bb7 {[%clk 0:03:03.8]} 3. Bd3 {[%clk 0:03:03.3]} 3... e6 {[%clk 0:03:05.7]}
4. Qe2 {[%clk 0:03:02.4]} 4... Nf6 {[%clk 0:03:06.7]} 5. Nd2 {[%clk 0:03:02.1]}
5... d5 {[%clk 0:03:06.4]} 6. e5 {[%clk 0:03:02.3]} 6... Nfd7 {[%clk 0:03:07.4]}
7. c3 {[%clk 0:03:02.9]} 7... c5 {[%clk 0:03:08.8]} 8. f4 {[%clk 0:03:03.3]}
8... Nc6 {[%clk 0:03:09.6]} 9. Ngf3 {[%clk 0:03:03.4]} 9... Qc7 {[%clk
0:03:01.2]} 10. O-O {[%clk 0:03:03]} 10... h6 {[%clk 0:02:54.9]} 11. f5 {[%clk
0:02:59.7]} 11... O-O-O {[%clk 0:02:53.3]} 12. Nh4 {[%clk 0:02:53.8]} 12... cxd4
{[%clk 0:02:51.8]} 13. fxe6 {[%clk 0:02:53.5]} 13... Ndxe5 {[%clk 0:02:43.8]}
14. Bf5 {[%clk 0:02:44.1]} 14... g6 {[%clk 0:02:15.9]} 15. e7+ {[%clk
0:02:43.1]} 15... gxf5 {[%clk 0:02:12.3]} 16. exd8=Q+ {[%clk 0:02:42.7]} 16...
Kxd8 {[%clk 0:02:11]} 17. Nxf5 {[%clk 0:02:30.6]} 17... d3 {[%clk 0:01:56.4]}
18. Qh5 {[%clk 0:02:24.7]} 18... Bc5+ {[%clk 0:01:48]} 19. Kh1 {[%clk
0:02:25.1]} 19... d4 {[%clk 0:01:48]} 20. Ne4 {[%clk 0:02:17.3]} 20... dxc3
{[%clk 0:01:41.7]} 21. bxc3 {[%clk 0:02:08.2]} 21... Rg8 {[%clk 0:01:24.3]} 22.
Nxc5 {[%clk 0:02:01]} 22... bxc5 {[%clk 0:01:21]} 23. Bxh6 {[%clk 0:01:56.6]}
23... Nd4 {[%clk 0:01:13.8]} 24. Bg5+ {[%clk 0:01:52.9]} 24... Ke8 {[%clk
0:00:58.8]} 25. cxd4 {[%clk 0:01:45]} 25... cxd4 {[%clk 0:00:54.9]} 26. Rae1
{[%clk 0:01:38.8]} 26... d2 {[%clk 0:00:53.4]} 27. Nd6+ {[%clk 0:01:01.1]} 27...
Kd7 {[%clk 0:00:22.3]} 28. Rxe5 {[%clk 0:00:46.1]} 28... Qxd6 {[%clk 0:00:18.8]}
29. Qxf7+ {[%clk 0:00:41]} 29... Kc6 {[%clk 0:00:18]} 30. Qc4+ {[%clk
0:00:41.6]} 30... Kd7 {[%clk 0:00:13.4]} 31. Rf7+ {[%clk 0:00:36.4]} 31... Qe7
{[%clk 0:00:11.8]} 32. Rfxe7+ {[%clk 0:00:37]} 32... Kd6 {[%clk 0:00:11.7]} 33.
Qc7# {[%clk 0:00:38.3]} 1-0

[Event "*** Titled Tuesday 3|2 Blitz"]
[Site "Chess.com"]
[Date "2015.12.01"]
[Round "8"]
[White "kikydu96"]
[Black "Svetlin_Mladenov"]
[Result "0-1"]
[WhiteElo "2257"]
[BlackElo "2328"]
[TimeControl "180+2"]
[EndTime "12:43:26 PST"]
[Termination "Svetlin_Mladenov won by resignation"]

1. e4 {[%clk 0:02:58]} 1... c5 {[%clk 0:03:00.4]} 2. c3 {[%clk 0:02:56.6]} 2...
e6 {[%clk 0:03:00.8]} 3. d4 {[%clk 0:02:46.9]} 3... cxd4 {[%clk 0:02:57.8]} 4.
cxd4 {[%clk 0:02:42.7]} 4... d5 {[%clk 0:02:59.3]} 5. exd5 {[%clk 0:02:40.7]}
5... Qxd5 {[%clk 0:03:00.1]} 6. Nc3 {[%clk 0:02:38.9]} 6... Bb4 {[%clk
0:03:00.9]} 7. Nf3 {[%clk 0:02:40]} 7... Nf6 {[%clk 0:03:01.9]} 8. Bd3 {[%clk
0:02:38.2]} 8... b6 {[%clk 0:02:59]} 9. O-O {[%clk 0:02:39]} 9... Bxc3 {[%clk
0:03:00]} 10. bxc3 {[%clk 0:02:40.5]} 10... Bb7 {[%clk 0:03:01.6]} 11. Ba3
{[%clk 0:02:37.1]} 11... Nbd7 {[%clk 0:02:58.3]} 12. Qe2 {[%clk 0:02:24.4]}
12... Qh5 {[%clk 0:02:51.5]} 13. Ne5 {[%clk 0:02:01]} 13... Qxe2 {[%clk
0:02:50.8]} 14. Bxe2 {[%clk 0:02:00.8]} 14... Nxe5 {[%clk 0:02:52.1]} 15. dxe5
{[%clk 0:02:02.3]} 15... Nd7 {[%clk 0:02:53.5]} 16. Bb5 {[%clk 0:02:01.4]} 16...
a6 {[%clk 0:02:48.9]} 17. Bxd7+ {[%clk 0:02:01.2]} 17... Kxd7 {[%clk 0:02:49.6]}
18. Rfd1+ {[%clk 0:02:02]} 18... Kc7 {[%clk 0:02:50.6]} 19. Rd6 {[%clk
0:01:59.6]} 19... Rhd8 {[%clk 0:02:47]} 20. Rad1 {[%clk 0:01:59.8]} 20... Bd5
{[%clk 0:02:42.1]} 21. f4 {[%clk 0:01:54.3]} 21... Rxd6 {[%clk 0:02:38.8]} 22.
Bxd6+ {[%clk 0:01:51.9]} 22... Kc6 {[%clk 0:02:39.5]} 23. a4 {[%clk 0:01:52.7]}
23... g5 {[%clk 0:02:35]} 24. fxg5 {[%clk 0:01:51.4]} 24... Rg8 {[%clk
0:02:36.1]} 25. h4 {[%clk 0:01:52.3]} 25... h6 {[%clk 0:02:37.6]} 26. Be7 {[%clk
0:01:52.8]} 26... hxg5 {[%clk 0:02:37.8]} 27. Bxg5 {[%clk 0:01:53.6]} 27... Kc5
{[%clk 0:02:36.7]} 28. Rd4 {[%clk 0:01:53.9]} 28... b5 {[%clk 0:02:31.7]} 29.
axb5 {[%clk 0:01:53.7]} 29... axb5 {[%clk 0:02:32.8]} 30. Kf2 {[%clk 0:01:54.2]}
30... Ra8 {[%clk 0:02:31.4]} 31. Be7+ {[%clk 0:01:50.4]} 31... Kc6 {[%clk
0:02:31.7]} 32. Rd2 {[%clk 0:01:51]} 32... Kd7 {[%clk 0:02:28.8]} 33. Bf6 {[%clk
0:01:49.4]} 33... Ra4 {[%clk 0:02:28.2]} 34. h5 {[%clk 0:01:49]} 34... Rg4
{[%clk 0:02:28.9]} 35. Kg1 {[%clk 0:01:44.5]} 35... Kc6 {[%clk 0:02:20.6]} 36.
Rxd5 {[%clk 0:01:34.7]} 36... Kxd5 {[%clk 0:01:50.2]} 37. h6 {[%clk 0:01:34.8]}
37... Rg6 {[%clk 0:01:48.1]} 38. h7 {[%clk 0:01:34.4]} 38... Rh6 {[%clk
0:01:49.4]} 39. h8=Q {[%clk 0:01:29.6]} 39... Rxh8 {[%clk 0:01:50.5]} 40. Bxh8
{[%clk 0:01:31.3]} 40... Kc4 {[%clk 0:01:52.2]} 41. Bf6 {[%clk 0:00:49.1]} 41...
Kxc3 {[%clk 0:01:52.7]} 42. Kf2 {[%clk 0:00:46.5]} 42... b4 {[%clk 0:01:53.5]}
43. Be7 {[%clk 0:00:46]} 43... b3 {[%clk 0:01:54.4]} 44. Ba3 {[%clk 0:00:46.4]}
44... b2 {[%clk 0:01:55.8]} 45. Bxb2+ {[%clk 0:00:45.9]} 45... Kxb2 {[%clk
0:01:57.4]} 46. Ke3 {[%clk 0:00:28.9]} 46... Kc3 {[%clk 0:01:57]} 47. Ke4 {[%clk
0:00:25.2]} 47... Kc4 {[%clk 0:01:57.8]} 48. g3 {[%clk 0:00:26.6]} 48... Kc3
{[%clk 0:01:56.1]} 49. g4 {[%clk 0:00:21.1]} 49... Kc4 {[%clk 0:01:56.3]} 50. g5
{[%clk 0:00:21.3]} 50... Kc5 {[%clk 0:01:54.9]} 51. Ke3 {[%clk 0:00:14.8]} 51...
Kd5 {[%clk 0:01:56.1]} 52. Kf4 {[%clk 0:00:16.3]} 52... Kd4 {[%clk 0:01:57.5]}
0-1